bitfinex/quotes_ETHUSD_20220109
["timestamp","ask_amount","ask_price","bid_price","bid_amount"]
[1641705015711,0.00284212,3142.9,3142.5,3.9062]
[1641705016113,0.0022737,3142.8,3142.5,3.9062]
[1641705016579,0.00170527,3142.7,3142.5,3.9062]
[1641705016782,1.5751039,3143.0,3142.5,3.9062]
[1641705017181,0.00113685,3142.9,3142.5,3.9062]
[1641705017580,0.0022737,3143.1,3142.5,3.9062]
[1641705017982,0.00170527,3143.0,3142.5,3.9062]
[1641705018383,0.0022737,3143.1,3142.5,3.9062]
[1641705018685,0.00170527,3143.0,3142.5,3.9062]
[1641705019082,0.0022737,3143.1,3142.6,0.79575]
[1641705019482,0.83265508,3143.0,3142.6,0.79575]
[1641705019882,0.83094981,3143.0,3142.6,0.79575]
[1641705020303,0.83094981,3143.0,3142.7,0.79572]
[1641705021107,0.83094981,3143.0,3142.8,1.11689658]
[1641705021508,0.0022737,3143.1,3142.9,0.5539826]
[1641705021911,0.00170527,3143.0,3142.9,0.5539826]
[1641705022108,0.00170527,3143.0,3142.9,0.8539826]
[1641705022908,0.00170527,3143.0,3142.9,5.3302126]
[1641705023111,0.00170527,3143.0,3142.9,6.89975103]
[1641705023310,0.13819997,3144.2,3143.5,1.35744368]
[1641705023511,6.3616,3144.1,3143.5,1.35744368]
[1641705023752,6.36785266,3144.1,3143.4,0.7955]
[1641705024553,6.36785266,3144.1,3143.4,1.591]
[1641705024754,6.36785266,3144.1,3143.4,3.1819871]
[1641705025054,6.36785266,3144.1,3143.7,0.50443237]
[1641705025953,7.67340773,3144.1,3143.5,0.79553]
[1641705027052,7.67340773,3144.1,3143.6,0.6835655]
[1641705029206,6.36785266,3144.1,3143.6,0.6835655]
[1641705029402,6.36785266,3144.1,3143.7,0.79553]
[1641705030403,7.73434023,3144.1,3143.7,0.79553]
[1641705032456,7.73434023,3144.1,3143.5,0.79557]
[1641705032659,7.73434023,3144.1,3143.3,1.56953843]
[1641705033458,7.73434023,3144.1,3143.7,0.63791882]
[1641705033758,6.36785266,3144.1,3143.7,0.63791882]
[1641705036716,0.83075629,3144.0,3143.7,1.43345882]
[1641705036916,6.3616,3143.9,3143.7,1.43345882]
[1641705037114,6.36671581,3143.9,3143.7,1.43345882]
[1641705037314,0.00454739,3143.8,3143.7,1.43345882]
[1641705037514,6.36614739,3143.8,3143.7,1.43345882]
[1641705040562,6.31614739,3143.8,3143.7,1.43345882]
[1641705044006,5.46614739,3143.8,3143.7,1.43345882]
[1641705046009,5.46614739,3143.8,3143.7,4.02289717]
[1641705046972,5.46614739,3143.8,3143.7,5.61367717]
[1641705047375,5.46614739,3143.8,3143.7,7.1832156]
[1641705048175,5.44614739,3143.8,3143.7,7.1832156]
[1641705048372,1.11011981,3143.8,3143.7,7.1832156]
[1641705048975,1.11011981,3143.8,3143.7,5.61367717]
[1641705055759,1.11011981,3143.8,3143.7,5.91367717]
[1641705055961,1.11011981,3143.8,3143.7,6.21367717]
[1641705056160,3.7625065,3144.9,3143.7,6.21367717]
[1641705056161,3.7625065,3144.9,3144.8,0.56278955]
[1641705056560,2.5364065,3144.9,3144.8,0.56278955]
[1641705056761,8.8960065,3144.9,3144.8,0.56278955]
[1641705056961,7.27023252,3144.9,3144.8,0.56278955]
[1641705057161,7.22023252,3144.9,3144.8,0.56278955]
[1641705061108,7.22023252,3144.9,3144.8,1.63018786]
[1641705066407,7.22023252,3144.9,3144.8,4.15832893]
[1641705066606,7.22023252,3144.9,3144.8,7.10832893]
[1641705066807,7.22023252,3144.9,3144.8,4.45832893]
[1641705067006,7.22023252,3144.9,3144.8,1.93018786]
[1641705067508,2.88559014,3144.9,3144.8,1.93018786]
[1641705068955,2.63634121,3144.9,3144.8,8.45609205]
[1641705069156,2.63634121,3144.9,3144.8,10.21409205]
[1641705069354,0.9489332,3145.0,3144.8,10.21409205]
[1641705069554,0.9489332,3145.0,3144.9,8.82376444]
[1641705069757,0.91439116,3145.0,3144.9,9.29384565]
[1641705069957,6.16,3145.9,3145.0,24.32]
[1641705070156,6.16,3146.5,3145.8,1.99020233]
[1641705070360,6.16,3146.5,3145.8,0.6546447]
[1641705070361,6.11,3146.5,3145.8,0.6546447]
[1641705070557,6.11,3146.5,3145.3,2.87129012]
[1641705070760,6.11,3146.5,3145.3,1.2348]
[1641705070958,6.11,3146.5,3145.3,4.91383124]
[1641705071158,6.16,3146.5,3145.3,8.55513124]
[1641705071357,6.16,3146.5,3145.4,1.31113568]
[1641705071756,6.16,3146.5,3145.6,0.57800629]
[1641705071959,6.16,3146.5,3145.9,1.22466131]
[1641705072157,6.16,3146.5,3146.0,2.66202144]
[1641705072356,6.16,3146.5,3146.0,3.45675554]
[1641705072619,6.16,3146.5,3146.0,3.75675554]
[1641705072822,6.16,3146.5,3146.0,2.96202144]
[1641705073015,6.16,3146.5,3146.2,0.66241474]
[1641705073320,6.16,3146.5,3146.0,2.66202144]
[1641705073514,6.16,3146.5,3146.0,2.53193521]
[1641705073717,6.16,3146.5,3145.8,1.87450479]
[1641705073917,6.16,3146.5,3145.9,0.3]
[1641705074117,6.16,3146.5,3145.8,1.57450479]
[1641705074316,6.16,3146.5,3145.8,2.18058335]
[1641705074616,6.16,3146.5,3145.8,1.57450479]
[1641705075416,6.16,3146.5,3145.8,4.08213905]
[1641705075616,6.16,3146.5,3145.8,0.67362894]
[1641705075819,7.50661425,3146.5,3145.8,0.67362894]
[1641705076659,7.50661425,3146.5,3145.7,1.2291]
[1641705077061,0.79502,3146.3,3145.7,1.2291]
[1641705077260,7.50661425,3146.5,3145.7,1.2291]
[1641705077462,0.00682108,3146.2,3145.7,1.2291]
[1641705077660,0.00682108,3146.2,3145.5,1.57450479]
[1641705077863,0.65851006,3146.0,3145.4,1.2015]
[1641705078266,0.00511581,3145.9,3145.4,1.2015]
[1641705078662,0.00454739,3145.8,3145.4,1.2015]
[1641705079065,0.00397897,3145.7,3145.5,1.17155944]
[1641705079363,0.00341054,3145.6,3145.4,1.2015]
[1641705079764,0.53942605,3146.4,3145.5,2.50290185]
[1641705080014,0.53942605,3146.4,3145.3,5.51580479]
[1641705080015,7.15239,3146.3,3145.3,5.51580479]
[1641705080915,7.15239,3146.3,3145.3,3.9413]
[1641705081510,0.83011212,3146.2,3145.3,3.9413]
[1641705081911,0.00625266,3146.1,3145.3,3.9413]
[1641705082311,0.00568424,3146.0,3145.3,3.9413]
[1641705082815,0.00511581,3145.9,3145.3,3.9413]
[1641705083212,0.00454739,3145.8,3145.3,3.9413]
[1641705083614,0.00397897,3145.7,3145.3,3.9413]
[1641705084061,0.00341054,3145.6,3145.3,3.9413]
[1641705084262,2.42013212,3146.2,3145.3,3.9413]
[1641705084462,0.56035601,3145.9,3145.3,3.9413]
[1641705084663,0.56035601,3145.9,3145.4,0.00113684]
[1641705084866,3.22181652,3145.8,3145.4,0.00113684]
[1641705085262,6.3574,3145.7,3145.4,0.00113684]
[1641705085463,3.48209418,3145.6,3145.4,0.00113684]
[1641705085662,9.0574,3145.5,3145.4,0.00113684]
[1641705085863,12.37740856,3145.5,3145.4,0.00113684]
[1641705086064,13.61919321,3145.5,3145.4,0.00113684]
[1641705086266,13.61919321,3145.5,3144.7,0.00511581]
[1641705086267,0.79534,3144.9,3144.7,0.00511581]
[1641705086462,6.3574,3144.8,3144.7,0.00511581]
[1641705087264,6.3574,3144.8,3144.4,0.00682108]
[1641705087265,6.92968511,3144.8,3144.4,0.00682108]
[1641705087716,6.3574,3144.8,3144.4,0.00682108]
[1641705087913,6.3574,3144.8,3144.5,1.57450479]
[1641705088414,6.3574,3144.8,3144.6,0.00568423]
[1641705088917,6.3574,3144.8,3144.5,0.00625265]
[1641705089113,6.3574,3144.8,3144.6,1.57450479]
[1641705089514,6.3574,3144.8,3144.7,0.00511581]
[1641705090614,6.3574,3144.8,3144.5,0.00625265]
[1641705091016,6.3574,3144.8,3144.6,1.57450479]
[1641705091259,6.3574,3144.8,3144.6,1.87450479]
[1641705091465,6.3574,3144.8,3144.7,4.30511581]
[1641705091660,6.3574,3144.8,3144.7,4.25511581]
[1641705092463,6.3574,3144.8,3144.7,9.38291655]
[1641705092662,0.57853279,3144.8,3144.7,9.38291655]
[1641705093461,0.57853279,3144.8,3144.7,10.38291655]
[1641705094067,0.57853279,3144.8,3144.7,10.84091655]
[1641705094262,0.57853279,3144.8,3144.7,10.83973955]
[1641705095020,0.00284212,3146.1,3144.9,18.67]
[1641705095210,0.00284212,3146.1,3145.0,5.60203354]
[1641705095410,0.00738951,3146.0,3145.0,5.60203354]
[1641705095811,0.00682108,3145.9,3145.0,5.60203354]
[1641705096013,0.00682108,3145.9,3145.6,0.59872186]
[1641705096214,0.00625266,3145.8,3145.7,0.458]
[1641705096413,0.00625266,3145.8,3145.7,2.98623551]
[1641705096812,0.00625266,3145.8,3145.7,8.11753551]
[1641705097014,0.00625266,3145.8,3145.7,9.69502264]
[1641705097214,0.79478,3147.0,3145.7,9.69502264]
[1641705097415,6.3566,3146.9,3145.7,10.48980264]
[1641705097614,0.00568424,3146.8,3145.7,10.48980264]
[1641705097814,7.00679769,3146.7,3145.7,10.48980264]
[1641705098015,7.0119135,3146.7,3145.7,10.48980264]
[1641705098216,0.00454739,3146.6,3145.7,10.48980264]
[1641705098516,0.00397896,3146.5,3145.7,10.48980264]
[1641705098762,0.00397896,3146.5,3145.9,1.0838004]
[1641705098964,0.00341054,3146.4,3146.0,0.79476]
[1641705099363,0.00284212,3146.3,3146.0,0.79476]
[1641705099763,0.00227369,3146.2,3146.0,0.79476]
[1641705099966,0.00227369,3146.2,3145.9,5.26230017]
[1641705100166,0.00170527,3146.1,3145.9,5.26230017]
[1641705100465,0.00113685,3146.0,3145.9,2.673342]
[1641705101368,0.00113685,3146.0,3145.9,6.78431778]
[1641705101966,0.00113685,3146.0,3145.9,7.08431778]
[1641705102366,6.3566,3146.7,3146.5,0.50725328]
[1641705102817,0.00341054,3146.6,3146.5,0.50725328]
[1641705103015,6.36001054,3146.6,3146.1,2.57122467]
[1641705103215,6.36001054,3146.6,3145.8,3.7103]
[1641705103415,0.00284211,3146.5,3145.8,3.7103]
[1641705103816,0.00227369,3146.4,3145.8,3.7103]
[1641705104015,0.00227369,3146.4,3146.2,0.67606556]
[1641705104215,2.50170527,3146.3,3146.2,0.67606556]
[1641705104619,0.00170527,3146.3,3146.2,0.67606556]
[1641705107069,0.00170527,3146.3,3145.8,5.28718237]
[1641705107266,0.00170527,3146.3,3145.8,5.58718237]
[1641705107469,0.00113684,3146.2,3145.8,5.58718237]
[1641705107669,0.00113684,3146.2,3145.8,4.0103]
[1641705107870,0.00284211,3146.5,3145.8,4.0103]
[1641705108070,0.00284211,3146.5,3145.9,0.5662696]
[1641705108271,0.00227369,3146.4,3146.0,2.50922864]
[1641705108470,0.00227369,3146.4,3145.9,0.5662696]
[1641705108670,0.00170527,3146.3,3145.9,0.5662696]
[1641705109069,0.00113684,3146.2,3145.9,0.5662696]
[1641705109577,0.00284211,3146.5,3145.9,0.5662696]
[1641705110017,0.00227369,3146.4,3145.9,0.5662696]
[1641705110417,0.00170527,3146.3,3145.9,0.5662696]
[1641705110615,0.00170527,3146.3,3145.9,2.14315197]
[1641705110915,0.00113684,3146.2,3145.9,2.14315197]
[1641705111317,7.18662209,3146.6,3145.8,7.80482785]
[1641705111318,0.00284211,3146.5,3145.8,7.80482785]
[1641705111516,0.00284211,3146.5,3145.8,5.28718237]
[1641705111715,0.00227369,3146.4,3145.8,5.28718237]
[1641705111917,0.00227369,3146.4,3145.8,7.78454338]
[1641705112119,0.00170527,3146.3,3145.8,5.28718237]
[1641705112317,0.00170527,3146.3,3145.8,7.8005661]
[1641705112517,0.00113684,3146.2,3145.8,1.57688237]
[1641705112719,0.79504,3146.0,3145.8,1.57688237]
[1641705112917,0.79504,3146.0,3145.0,1.1808]
[1641705112918,0.79504,3146.0,3145.9,1.57688237]
[1641705113117,12.80244,3146.0,3145.9,1.57688237]
[1641705113317,5.65,3145.9,3145.0,3.9399]
[1641705113760,0.79512,3145.7,3145.1,0.00511581]
[1641705114561,0.52794763,3145.6,3145.1,0.00511581]
[1641705114764,0.79514,3145.5,3145.1,0.00511581]
[1641705115563,0.52794763,3145.6,3145.1,0.00511581]
[1641705115763,0.79518,3145.4,3145.1,0.00511581]
[1641705116565,1.5903637,3145.4,3145.1,0.00511581]
[1641705116764,1.59036,3145.4,3145.1,0.00511581]
[1641705116966,1.59032,3145.5,3145.1,0.00511581]
[1641705117166,7.94773,3145.8,3145.1,0.00511581]
[1641705117810,8.74266,3145.8,3145.1,0.00511581]
[1641705118412,6.3574,3145.8,3145.1,0.57648405]
[1641705118817,6.3574,3145.8,3145.2,0.00454739]
[1641705119612,7.15248,3145.8,3145.2,0.00454739]
[1641705120015,6.3574,3145.8,3145.2,0.00454739]
[1641705120213,7.9477,3145.8,3145.2,0.00454739]
[1641705120614,0.79515,3145.6,3145.2,0.00454739]
[1641705121014,1.5902257,3145.7,3145.2,0.00454739]
[1641705121258,6.3574,3145.6,3145.2,0.00454739]
[1641705125820,1.59026,3145.5,3145.2,0.00454739]
[1641705127420,7.15253,3145.6,3145.2,0.00454739]
[1641705128422,6.3574,3145.6,3145.2,0.00454739]
[1641705131367,6.3574,3145.6,3145.4,0.55456233]
[1641705131666,6.3574,3145.6,3145.5,0.00284212]
[1641705132066,6.3574,3145.6,3145.2,0.00454739]
[1641705132265,6.3574,3145.6,3145.2,1.58587007]
[1641705132734,6.3574,3145.6,3145.3,0.00397897]
[1641705133735,6.3574,3145.6,3145.2,0.00454739]
[1641705133934,6.3574,3145.6,3145.2,1.58587007]
[1641705134434,6.3574,3145.6,3145.3,0.00397897]
[1641705136036,6.3574,3145.6,3145.2,0.00454739]
[1641705137066,0.79513,3145.5,3145.2,0.00454739]
[1641705137663,5.52717115,3145.6,3145.2,0.00454739]
[1641705138065,0.79518,3145.4,3145.2,1.58587007]
[1641705138466,0.79518,3145.4,3145.3,0.00397897]
[1641705138664,0.83032344,3145.5,3145.3,0.00397897]
[1641705140918,1.62546344,3145.5,3145.3,0.00397897]
[1641705141320,0.83032344,3145.5,3145.3,0.00397897]
[1641705142621,0.83032344,3145.5,3145.2,0.00454739]
[1641705142820,0.83032344,3145.5,3145.3,1.58132268]
[1641705143221,0.83032344,3145.5,3145.4,0.00341054]
[1641705143422,6.35749459,3145.5,3145.4,0.00341054]
[1641705144468,6.35749459,3145.5,3145.4,1.58473322]
[1641705145269,2.02360055,3145.5,3145.4,1.58473322]
[1641705148818,2.02360055,3145.5,3145.4,0.00341054]
[1641705149216,2.02360055,3145.5,3145.3,0.00397897]
[1641705150317,2.02360055,3145.5,3145.4,1.5736409]
[1641705150716,2.02360055,3145.5,3145.4,1.57705144]
[1641705150916,2.02360055,3145.5,3145.4,0.00341054]
[1641705151372,2.02360055,3145.5,3145.2,0.00454739]
[1641705151769,2.02360055,3145.5,3145.2,0.79950339]
[1641705152170,2.02360055,3145.5,3145.3,0.00397897]
[1641705154871,2.81871745,3145.5,3145.3,0.00397897]
[1641705155324,3.61383745,3145.5,3145.3,0.00397897]
[1641705155723,3.61383745,3145.5,3145.3,1.57910729]
[1641705156125,3.61383745,3145.5,3145.4,0.00341054]
[1641705156524,4.40893745,3145.5,3145.4,1.57853886]
[1641705157226,4.40893745,3145.5,3145.4,0.00341054]
[1641705158025,4.40893745,3145.5,3145.4,1.58041365]
[1641705158226,7.56660317,3145.5,3145.4,1.58041365]
[1641705158426,7.56660317,3145.5,3144.8,0.05399141]
[1641705158427,0.79532,3145.1,3144.8,0.05399141]
[1641705158627,3.39532,3144.9,3144.8,0.05399141]
[1641705158867,5.41892055,3144.9,3144.8,0.05399141]
[1641705159467,7.03465684,3144.9,3144.8,0.05399141]
[1641705162070,2.81892055,3144.9,3144.8,0.05399141]
[1641705162266,2.02360055,3144.9,3144.8,0.05399141]
[1641705163313,1.38215357,3145.5,3144.8,0.05399141]
[1641705163514,0.79525,3145.0,3144.8,0.05399141]
[1641705163714,1.5905067,3145.0,3144.9,0.00284212]
[1641705164216,7.15465,3145.0,3144.9,0.00284212]
[1641705164418,6.3594,3145.0,3144.9,0.00284212]
[1641705171716,6.3594,3145.0,3144.9,0.68484568]
[1641705173118,6.3594,3145.0,3144.9,0.61484568]
[1641705174374,6.3594,3145.0,3144.8,0.05399141]
[1641705176475,6.3594,3145.0,3144.9,1.23182283]
[1641705176775,6.3594,3145.0,3144.8,0.05399141]
[1641705177919,4.73408516,3145.0,3144.8,0.05399141]
[1641705178520,0.39989607,3145.0,3144.8,0.05399141]
[1641705182365,0.83032446,3145.3,3144.8,0.35399141]
[1641705182566,0.83032446,3145.3,3144.8,0.65399141]
[1641705182769,0.00170527,3145.2,3144.8,0.65399141]
[1641705183167,0.00113685,3145.1,3144.8,0.65399141]
[1641705185033,0.00113685,3145.1,3144.9,2.65638169]
[1641705186023,0.00113685,3145.1,3144.9,3.38928169]
[1641705186224,0.00113685,3145.1,3145.0,2.64888309]
[1641705187523,0.00113685,3145.1,3145.0,4.24888309]
[1641705187929,0.00113685,3145.1,3145.0,9.45808309]
[1641705188530,0.00113685,3145.1,3145.0,28.58608309]
[1641705189374,3.3116,3146.7,3145.1,0.00176689]
[1641705189565,3.3116,3146.7,3146.6,0.69405168]
[1641705189765,0.79477,3146.9,3146.6,0.69405168]
[1641705189968,0.79477,3146.9,3146.2,1.0454944]
[1641705190169,0.0096632,3146.8,3146.2,1.0454944]
[1641705190464,0.00909477,3146.7,3146.2,1.0454944]
[1641705190969,0.00852635,3146.6,3146.5,0.65154504]
[1641705192616,6.36472635,3146.6,3146.5,0.65154504]
[1641705196870,6.36472635,3146.6,3146.2,3.57373479]
[1641705197072,6.36472635,3146.6,3146.2,1.0454944]
[1641705197272,0.00795792,3146.5,3146.2,5.1329398]
[1641705197475,0.00795792,3146.5,3146.2,2.60151501]
[1641705197476,6.3562,3146.4,3146.2,2.60151501]
[1641705197772,0.00682108,3146.3,3146.2,2.60151501]
[1641705197972,6.36302108,3146.3,3146.2,1.55602061]
[1641705198774,6.36302108,3146.3,3146.1,1.55602061]
[1641705198974,2.03019904,3146.3,3146.1,1.55602061]
[1641705199176,2.03019904,3146.3,3146.1,2.1573727]
[1641705199576,2.03019904,3146.3,3146.2,2.5606178]
[1641705199775,2.03019904,3146.3,3146.1,1.55602061]
[1641705200813,2.82511404,3146.3,3146.1,1.55602061]
[1641705201014,5.20985404,3146.3,3146.1,1.55602061]
[1641705201217,5.20985404,3146.3,3145.8,5.28642061]
[1641705201613,4.41496404,3146.3,3145.9,0.0022737]
[1641705201812,3.62004904,3146.3,3145.9,0.0022737]
[1641705202111,3.62001904,3146.3,3145.9,0.0022737]
[1641705202712,3.52789198,3146.3,3145.9,0.0022737]
[1641705203312,0.79491,3146.2,3145.9,0.0022737]
[1641705203778,1.58983,3146.2,3145.9,0.0022737]
[1641705203978,0.79491,3146.2,3145.9,0.0022737]
[1641705204173,0.79494,3146.1,3145.9,0.0022737]
[1641705204577,0.79491,3146.2,3145.9,0.0022737]
[1641705205176,2.73301198,3146.3,3145.9,0.0022737]
[1641705205177,4.32278198,3146.3,3145.9,0.0022737]
[1641705205376,3.52788198,3146.3,3145.9,0.0022737]
[1641705206078,3.52788198,3146.3,3145.9,2.70426826]
[1641705206282,3.52788198,3146.3,3145.9,0.0022737]
[1641705206479,3.52788198,3146.3,3146.0,0.00170527]
[1641705207721,3.52788198,3146.3,3146.0,1.55772588]
[1641705208123,3.52788198,3146.3,3146.1,0.00113685]
[1641705208323,2.03019904,3146.3,3146.1,2.57031119]
[1641705208623,2.03019904,3146.3,3146.1,2.57484247]
[1641705208828,2.03019904,3146.3,3146.1,0.00113685]
[1641705209023,2.03019904,3146.3,3146.1,2.55967246]
[1641705210225,2.03019904,3146.3,3146.1,4.11569307]
[1641705210426,2.03019904,3146.3,3146.2,2.6787871]
[1641705210628,1.98019904,3146.3,3146.2,2.6787871]
[1641705210828,1.98019904,3146.3,3146.1,1.55715746]
[1641705211278,2.41971209,3146.5,3146.3,1.66146945]
[1641705211279,0.83011209,3146.5,3146.3,1.66146945]
[1641705211482,2.48231631,3147.4,3146.3,1.66146945]
[1641705211483,0.16594666,3147.7,3146.5,5.7]
[1641705211674,6.3551,3147.6,3146.6,3.37142196]
[1641705212076,6.3551,3147.6,3147.1,1.18010456]
[1641705212276,6.90104905,3147.6,3147.1,1.4999]
[1641705212475,6.90104905,3147.6,3147.2,0.3]
[1641705212676,6.85104905,3147.6,3147.2,0.3]
[1641705213174,6.85104905,3147.6,3147.1,5.52222196]
[1641705213576,6.85104905,3147.6,3147.5,1.55602061]
[1641705213776,8.44060235,3147.6,3147.5,1.55602061]
[1641705213979,16.05207612,3147.6,3147.5,1.55602061]
[1641705214478,15.59711029,3147.6,3147.5,1.55602061]
[1641705214675,16.39179029,3147.6,3147.5,1.55602061]
[1641705215019,16.39179029,3147.6,3146.7,1.55602061]
[1641705215215,16.05189282,3147.6,3146.7,1.55602061]
[1641705215515,0.00682108,3147.5,3146.7,1.55602061]
[1641705215916,0.06075693,3147.4,3146.7,1.55602061]
[1641705216216,9.23510905,3147.6,3146.7,1.55602061]
[1641705216217,0.00568423,3147.3,3146.7,1.55602061]
[1641705216416,0.0601885,3147.3,3146.7,1.55602061]
[1641705216619,6.31021581,3147.2,3146.7,1.55602061]
[1641705216816,6.36472008,3147.2,3146.7,1.55602061]
[1641705217017,0.05905166,3147.1,3146.7,1.55602061]
[1641705217217,0.05905166,3147.1,3146.8,1.55602061]
[1641705217417,6.30907896,3147.0,3146.8,1.55602061]
[1641705217816,1.97675344,3147.0,3146.7,1.55602061]
[1641705218417,0.35237018,3147.0,3146.8,1.55602061]
[1641705219168,0.35237018,3147.0,3146.7,1.55602061]
[1641705221271,0.05467004,3146.9,3146.7,1.55602061]
[1641705221465,0.05467004,3146.9,3146.5,1.55602061]
[1641705221466,3.30237018,3146.8,3146.5,1.55602061]
[1641705221671,0.35237018,3146.8,3146.5,1.55602061]
[1641705221870,0.40704022,3146.8,3146.6,0.00170527]
[1641705222543,0.35237018,3146.8,3146.6,0.00170527]
[1641705222923,0.40704022,3146.8,3146.4,0.00284212]
[1641705223324,0.35237018,3146.8,3146.4,0.00284212]
[1641705223525,0.35237018,3146.8,3146.4,1.55886273]
[1641705223925,0.35237018,3146.8,3146.5,0.0022737]
[1641705224425,0.35237018,3146.8,3146.5,1.55829431]
[1641705224825,0.35237018,3146.8,3146.6,0.00170527]
[1641705227270,1.14722018,3146.8,3146.6,0.00170527]
[1641705227470,1.97719495,3146.8,3146.6,0.00170527]
[1641705228372,1.18234495,3146.8,3146.6,0.00170527]
[1641705228971,1.97720645,3146.8,3146.6,0.00170527]
[1641705229772,2.45,3146.7,3146.4,1.50772588]
[1641705230025,0.5995631,3146.5,3146.4,1.50772588]
[1641705230214,0.95193328,3146.5,3146.4,1.50772588]
[1641705230415,0.95193328,3146.5,3146.4,1.50886273]
[1641705231816,0.95193328,3146.5,3146.4,0.00113685]
[1641705233416,3.21455627,3146.8,3146.4,0.00113685]
[1641705233616,0.79491,3146.6,3146.4,0.00113685]
[1641705233872,6.3563,3146.5,3146.4,0.00113685]
[1641705234067,7.96129414,3146.5,3146.4,0.00113685]
[1641705234267,1.34273986,3146.3,3145.5,3.6959]
[1641705234472,1.34273986,3146.3,3144.9,5.42886866]
[1641705234473,3.35351644,3146.2,3144.9,5.42886866]
[1641705234671,3.35351644,3146.2,3145.6,0.00454739]
[1641705234672,0.79512,3145.8,3145.6,0.00454739]
[1641705234869,7.15143,3145.7,3145.6,0.00454739]
[1641705235067,8.34068157,3145.7,3145.6,0.00454739]
[1641705235268,0.57187473,3145.0,3144.7,0.0096632]
[1641705235470,6.3563,3144.9,3144.7,0.0096632]
[1641705235869,6.3563,3144.9,3144.5,5.42886866]
[1641705235870,6.3563,3144.9,3144.6,0.01023162]
[1641705236871,6.3563,3144.9,3144.5,0.01080004]
[1641705237069,6.3563,3144.9,3144.2,0.01250531]
[1641705237531,1.34273986,3146.3,3144.6,0.01231869]
[1641705237721,1.34273986,3146.3,3144.7,0.458]
[1641705237921,6.3583,3146.2,3144.8,4.09525546]
[1641705238121,6.3583,3146.2,3144.8,4.56235023]
[1641705238424,0.62242366,3145.6,3145.0,1.28539836]
[1641705238620,0.62242366,3145.6,3145.0,0.3]
[1641705238820,0.62242366,3145.6,3145.1,0.0073895]
[1641705239619,0.62242366,3145.6,3144.9,0.00852635]
[1641705241673,7.94836,3146.2,3144.9,0.50852635]
[1641705241873,6.3583,3146.2,3145.0,2.96435546]
[1641705242074,6.3583,3146.2,3145.0,3.57231339]
[1641705242272,6.3583,3146.2,3145.1,0.0073895]
[1641705242673,0.66312129,3145.9,3145.2,0.56513596]
[1641705242873,6.3583,3145.8,3145.2,3.26435546]
[1641705243075,6.3583,3145.8,3145.3,1.00625266]
[1641705243473,6.3583,3145.8,3145.4,0.00568423]
[1641705244073,6.3583,3145.8,3145.3,0.00625266]
[1641705244476,6.3583,3145.8,3145.2,0.00682108]
[1641705244675,6.3583,3145.8,3145.1,0.0073895]
[1641705244877,6.3583,3145.8,3144.9,0.00852635]
[1641705246116,1.41623887,3145.7,3144.9,0.00852635]
[1641705246315,0.58549244,3145.1,3144.9,0.00852635]
[1641705247614,6.3583,3145.8,3144.9,0.00852635]
[1641705248214,6.3583,3145.8,3144.9,1.00852635]
[1641705248415,2.02502797,3145.8,3145.1,3.1]
[1641705248872,0.65658587,3145.4,3145.2,0.00682108]
[1641705249269,0.65658587,3145.4,3145.1,0.0073895]
[1641705251072,0.65658587,3145.4,3145.1,0.3073895]
[1641705251271,0.65658587,3145.4,3145.1,0.3]
[1641705251471,0.65658587,3145.4,3145.2,0.00682108]
[1641705251973,0.65658587,3145.4,3145.0,0.00795793]
[1641705254920,0.65658587,3145.4,3145.2,1.55078128]
[1641705255320,0.65658587,3145.4,3145.3,0.00625266]
[1641705256121,0.65658587,3145.4,3145.2,0.00682108]
[1641705257170,7.57502797,3145.3,3145.2,0.00682108]
[1641705257373,2.37646014,3144.5,3144.1,2.99279526]
[1641705257571,2.37646014,3144.5,3143.4,2.99279526]
[1641705257572,2.02502797,3144.4,3143.4,2.99279526]
[1641705257771,2.02502797,3144.4,3144.2,0.00568423]
[1641705257971,3.70592212,3144.4,3144.2,0.00568423]
[1641705258174,1.72548981,3144.3,3143.9,0.00738951]
[1641705258371,2.02502797,3144.2,3143.9,0.00738951]
[1641705258575,2.07986369,3144.2,3143.9,0.00738951]
[1641705258871,0.3993737,3144.2,3143.5,0.0096632]
[1641705259673,1.28420551,3144.1,3143.5,0.0096632]
[1641705260043,3.86685797,3144.3,3143.5,0.0096632]
[1641705260232,0.66893619,3143.6,3143.5,0.0096632]
[1641705260836,0.66893619,3143.6,3143.0,0.01250532]
[1641705261036,0.66893619,3143.6,3142.9,0.01307374]
[1641705261235,6.3628,3143.5,3142.9,0.01307374]
[1641705261436,1.28188129,3143.4,3142.9,0.01307374]
[1641705261635,2.07760129,3143.4,3142.9,0.01307374]
[1641705261835,1.28188129,3143.4,3142.9,0.01307374]
[1641705262033,3.32652526,3143.3,3142.9,0.01307374]
[1641705262242,3.29243459,3142.4,3142.1,6.16]
[1641705262436,6.3628,3142.3,3142.1,6.16]
[1641705262633,6.3628,3142.3,3142.2,0.00227369]
[1641705262835,7.65267629,3142.3,3142.2,0.00227369]
[1641705263037,6.89848304,3142.3,3142.2,0.00227369]
[1641705264274,2.56152941,3142.3,3142.2,0.00227369]
[1641705265475,0.4997377,3142.4,3142.2,0.00227369]
[1641705265874,6.3648,3142.3,3142.2,0.00227369]
[1641705266076,6.3648,3142.3,3141.8,0.00454739]
[1641705266475,6.3648,3142.3,3141.5,0.60625266]
[1641705266674,6.3648,3142.3,3141.6,0.00568423]
[1641705267083,6.3648,3142.3,3141.6,0.30568423]
[1641705267531,6.3648,3142.3,3141.7,0.30511581]
[1641705268024,6.3648,3142.3,3141.8,0.00454739]
[1641705268425,6.3648,3142.3,3141.5,0.00625266]
[1641705269430,0.62478865,3141.6,3141.5,0.00625266]
[1641705270631,5.23765491,3142.3,3141.5,0.00625266]
[1641705271271,2.03765491,3142.3,3141.5,0.00625266]
[1641705271569,0.56479781,3142.2,3141.5,0.00625266]
[1641705271969,4.80587528,3142.2,3141.5,0.00625266]
[1641705272170,0.05483572,3142.1,3141.5,0.00625266]
[1641705272372,2.09249063,3142.1,3141.5,0.00625266]
[1641705272570,3.35411837,3142.0,3141.5,0.00625266]
[1641705272771,0.79616,3141.9,3141.5,0.00625266]
[1641705272972,0.85099572,3141.9,3141.5,0.00625266]
[1641705273175,6.366,3141.8,3141.5,0.00625266]
[1641705274675,0.62720828,3141.6,3141.5,0.00625266]
[1641705274874,6.99320828,3141.6,3141.5,0.00625266]
[1641705275119,6.366,3141.6,3141.5,0.00625266]
[1641705276423,6.366,3141.6,3141.0,0.62567318]
[1641705276424,5.47874913,3139.9,3139.7,1.0]
[1641705276622,5.47874913,3139.9,3138.8,6.91]
[1641705276623,0.2536,3139.7,3138.8,6.91]
[1641705276821,0.5129,3139.7,3138.8,6.91]
[1641705277019,6.366,3139.6,3138.8,6.91]
[1641705277221,0.93478997,3140.2,3138.6,3.6361]
[1641705277222,0.13819997,3140.2,3138.6,3.6361]